fUSD/lending_fUSD_20260115
["ID","MTS","AMOUNT","RATE_DAILY","PERIOD"]
[402100519,1768518642091,-454.6,0.0002276,2]
[402100520,1768518642101,-1152.0,0.00022768,2]
[402100521,1768518642111,-217.15233878,0.00023165,2]
[402100522,1768518642121,-713.97283296,0.00023165,2]
[402100523,1768518642131,-4609.0,0.00023228,2]
[402100524,1768518642140,-500.0,0.00023408,2]
[402100525,1768518642149,-620.13836371,0.00023408,2]
[402100526,1768518642160,-225.18697532,0.00023713,2]
[402100527,1768518642169,-484.22810817,0.00023713,2]
[402100528,1768518642179,-500.0,0.00023753,2]
[402100529,1768518642188,-398.26454113,0.00023803,2]
[402100530,1768518642198,-500.0,0.00023945,2]
[402100531,1768518642208,-233.51889341,0.00024261,2]
[402100532,1768518642218,-1000.0,0.00024658,2]
[402100533,1768518642227,-7.69956666,0.0002479,2]
[402100535,1768518642248,-143.50043334,0.0002479,2]
[402100536,1768518642258,-406.53370807,0.00024799,2]
[402100537,1768518642267,-500.0,0.00024799,2]
[402100538,1768518642276,-446.01402559,0.00024799,2]
[402100539,1768518642288,-53.98597441,0.00024799,2]
[402100541,1768518642297,-500.0,0.00024799,2]
[402100542,1768518642306,-314.66486057,0.00024799,2]
[402100543,1768518642316,-500.0,0.00024799,2]
[402100544,1768518642325,-500.0,0.00024799,2]
[402100545,1768518642335,-500.0,0.00024799,2]
[402100546,1768518642344,-500.0,0.00024799,2]
[402100547,1768518642353,-500.0,0.00024799,2]
[402100548,1768518642363,-497.96803671,0.00024799,2]
[402100549,1768518642376,-2.03196329,0.00024799,2]
[402100550,1768518642385,-692.36329749,0.000248,2]
[402100552,1768518642408,-1185.97986445,0.000248,2]
[402100553,1768518642419,-748.26893567,0.000248,2]
[402100554,1768518642431,-361.5890497,0.000248,2]
[402100606,1768518644713,-1.7e-07,0.00020558,2]
[402100608,1768518645584,-446.96999983,0.00020558,2]
[402100609,1768518645594,-446.97,0.00020831,2]
[402100610,1768518645603,-250.12320021,0.000248,2]
[402100611,1768518645614,-686.17197089,0.000248,2]
[402100613,1768518645678,-51266.02536789,0.000248,2]
[402100615,1768518645686,-242.15909246,0.00024809,2]
[402100616,1768518645696,-1613.0,0.00024895,2]
[402100617,1768518645706,-1349.56354995,0.000249,2]
[402100618,1768518645715,-454.6,0.00024919,2]
[402100619,1768518645724,-13073.1020981,0.00025,2]
[402100620,1768518645734,-5279.10898111,0.00025,2]
[402100621,1768518645743,-251.11897888,0.00025357,2]
[402100622,1768518645752,-6453.0,0.00025525,2]
[402100623,1768518645763,-500.0,0.00025552,2]
[402100624,1768518645773,-500.0,0.00025552,2]
[402100625,1768518645782,-500.0,0.00025552,2]
[402100626,1768518645791,-500.0,0.00025552,2]
[402100627,1768518645801,-500.0,0.00025552,2]
[402100628,1768518645810,-500.0,0.00025552,2]
[402100629,1768518645819,-500.0,0.00025552,2]
[402100631,1768518645829,-500.0,0.00025552,2]
[402100632,1768518645838,-500.0,0.00025552,2]
[402100633,1768518645848,-526.09785312,0.00025552,2]
[402100634,1768518645857,-522.21317898,0.00025552,2]
[402100635,1768518645866,-500.0,0.00025552,2]
[402100636,1768518645876,-500.0,0.00025552,2]
[402100638,1768518645885,-500.0,0.00025552,2]
[402100639,1768518645895,-585.17260146,0.00025552,2]
[402100640,1768518645904,-658.99,0.00025556,2]
[402100641,1768518645914,-260.4103811,0.00025905,2]
[402100642,1768518645924,-270.0455652,0.00026453,2]
[402100643,1768518645933,-262.900761,0.00027001,2]
[402100645,1768518645942,-454.6,0.00027078,2]
[402100647,1768518645952,-506.0,0.00027137,2]
[402100648,1768518645961,-848.0,0.0002722,2]
[402100649,1768518645974,-13073.1020981,0.00027268,2]
[402100650,1768518645984,-5279.10898111,0.00027268,2]
[402100652,1768518645994,-195.59,0.00027471,2]
[402100653,1768518646004,-398.26454113,0.00027577,2]
[402100654,1768518646014,-9035.0,0.0002805,2]
[402100655,1768518646024,-1404.0,0.000286,5]
[402100656,1768518646034,-150.0,0.0002863,2]
[402100657,1768518646045,-500.0,0.00028858,2]
[402100659,1768518646055,-500.0,0.00028858,10]
[402100660,1768518646065,-500.0,0.00028858,10]
[402100661,1768518646074,-500.0,0.00028858,10]
[402100662,1768518646083,-454.6,0.00029237,2]
[402100663,1768518646092,-5134.0,0.0002943,5]
[402100665,1768518646101,-13073.1020981,0.00029535,2]
[402100666,1768518646110,-5279.10898111,0.00029535,2]
[402100667,1768518646120,-6556.0,0.00030684,2]
[402100668,1768518646129,-1268.0,0.00030824,2]
[402100669,1768518646138,-398.26454113,0.00031351,2]
[402100670,1768518646150,-454.6,0.00031396,2]
[402100672,1768518646159,-150.0,0.00031493,2]
[402100673,1768518646169,-13073.1020981,0.00031803,2]
[402100674,1768518646178,-5279.10898111,0.00031803,2]
[402100675,1768518646188,-1000.0,0.00032498,90]
[402100676,1768518646197,-1000.0,0.00032498,90]
[402100677,1768518646207,-1000.0,0.00032658,120]
[402100678,1768518646216,-381.743,0.00032658,120]
[402100679,1768518646225,-1000.0,0.00032822,30]
[402100680,1768518646235,-1000.0,0.00032822,30]
[402100682,1768518646245,-1000.0,0.00032822,30]
[402100683,1768518646254,-1000.0,0.00032822,30]
[402100684,1768518646264,-578.605,0.00032822,30]
[402100685,1768518646273,-500.0,0.00033069,10]
[402100686,1768518646282,-150.0,0.00033069,20]
[402100687,1768518646291,-246.76,0.00033096,2]
[402100688,1768518646301,-1000.0,0.000333,7]
[402100689,1768518646310,-454.6,0.00033555,5]
[402100690,1768518646320,-151.2,0.0003356,2]
[402100691,1768518646329,-150.0,0.00033863,60]
[402100692,1768518646338,-150.0,0.00033863,60]
[402100693,1768518646347,-150.0,0.00033863,60]
[402100695,1768518646356,-152.84284681,0.00033863,60]
[402100696,1768518646366,-300.0,0.00033863,30]
[402100697,1768518646375,-500.0,0.00033972,2]
[402100698,1768518646384,-500.0,0.00033972,10]
[402100699,1768518646394,-272.51639976,0.00033972,10]
[402100701,1768518646403,-500.0,0.00033972,10]
[402100702,1768518646412,-13073.1020981,0.0003407,2]
[402100703,1768518646421,-5279.10898111,0.0003407,2]
[402100704,1768518646431,-159.01,0.00034321,120]
[402100705,1768518646442,-150.0,0.00034356,2]
[402100706,1768518646451,-300.0,0.00034411,35]
[402100708,1768518646462,-1800.0,0.0003452,14]
[402100709,1768518646472,-1000.0,0.00034529,2]
[402100710,1768518646482,-506.0,0.00034689,10]
[402100711,1768518646492,-1000.0,0.00034784,2]
[402100712,1768518646501,-500.0,0.00034794,14]
[402100714,1768518646511,-900.0,0.00034794,14]
[402100715,1768518646521,-150.0,0.00035,2]
[402100716,1768518646531,-398.26454113,0.00035126,2]
[402100717,1768518646541,-660.89,0.00035138,2]
[402100718,1768518646551,-152.92,0.0003516,30]
[402100720,1768518646562,-2950.52142148,0.00035308,2]
[402100721,1768518646572,-1800.0,0.00035342,14]
[402100722,1768518646582,-1000.0,0.000354,7]
[402100723,1768518646592,-150.0,0.00035432,2]
[402100724,1768518646602,-200.0,0.00035507,40]
[402100725,1768518646612,-280.9653154,0.00035516,2]
[402100727,1768518646621,-500.0,0.00035615,2]
[402100728,1768518646631,-500.0,0.00035615,10]
[402100729,1768518646641,-500.0,0.00035615,10]
[402100730,1768518646651,-500.0,0.00035615,10]
[402100731,1768518646660,-500.0,0.00035615,10]
[402100732,1768518646670,-150.0,0.00035615,5]
[402100734,1768518646680,-500.0,0.00035615,10]
[402100735,1768518646690,-500.0,0.00035615,10]
[402100736,1768518646700,-500.0,0.00035615,10]
[402100737,1768518646710,-500.0,0.00035616,10]
[402100738,1768518646722,-500.0,0.00035616,10]
[402100739,1768518646732,-500.0,0.00035616,10]
[402100741,1768518646743,-488.19815123,0.00035616,10]
[402100742,1768518646753,-500.0,0.00035616,10]
[402100743,1768518646762,-500.0,0.00035616,14]
[402100744,1768518646773,-900.0,0.00035616,14]
[402100745,1768518646783,-500.0,0.00035616,10]
[402100746,1768518646793,-500.0,0.00035616,10]
[402100747,1768518646803,-1000.0,0.00035616,2]
[402100748,1768518646813,-500.0,0.00035616,10]
[402100749,1768518646823,-500.0,0.00035616,10]
[402100750,1768518646834,-500.0,0.00035616,10]
[402100751,1768518646844,-500.0,0.00035616,10]
[402100752,1768518646854,-557.41,0.00035616,10]
[402100753,1768518646863,-500.0,0.00035616,10]
[402100754,1768518646874,-500.0,0.00035616,10]
[402100755,1768518646885,-500.0,0.00035616,10]
[402100757,1768518646895,-500.0,0.00035616,10]
[402100758,1768518646908,-618.33,0.00035616,10]
[402100759,1768518646918,-500.0,0.00035616,10]
[402100760,1768518646928,-500.0,0.00035616,10]
[402100761,1768518646938,-500.0,0.00035616,10]
[402100763,1768518646948,-500.0,0.00035616,10]
[402100764,1768518646958,-546.89,0.00035616,10]
[402100765,1768518646972,-500.0,0.00035616,10]
[402100766,1768518646982,-500.0,0.00035616,10]
[402100767,1768518646991,-742.2,0.00035616,10]
[402100769,1768518647001,-577.81103888,0.00035616,10]
[402100770,1768518647012,-500.0,0.00035616,10]
[402100771,1768518647021,-500.0,0.00035616,10]
[402100772,1768518647031,-500.0,0.00035616,10]
[402100773,1768518647042,-656.76,0.00035616,10]
[402100774,1768518647052,-500.0,0.00035616,10]
[402100776,1768518647061,-500.0,0.00035616,10]
[402100777,1768518647071,-590.6,0.00035616,10]
[402100778,1768518647081,-500.0,0.00035616,10]
[402100779,1768518647090,-1222.32,0.00035616,10]
[402100780,1768518647100,-500.0,0.00035616,10]
[402100782,1768518647110,-516.36018016,0.00035616,10]
[402100783,1768518647121,-500.0,0.00035616,10]
[402100784,1768518647131,-500.0,0.00035616,10]
[402100785,1768518647141,-500.0,0.00035616,10]
[402100786,1768518647150,-500.0,0.00035616,10]
[402100787,1768518647159,-500.0,0.00035616,10]
[402100789,1768518647170,-500.0,0.00035616,10]
[402100790,1768518647179,-500.0,0.00035616,5]
[402100791,1768518647188,-500.0,0.00035616,10]
[402100792,1768518647198,-500.0,0.00035616,10]
[402100793,1768518647208,-500.0,0.00035616,10]
[402100794,1768518647219,-566.95779131,0.00035616,10]
[402100795,1768518647229,-500.0,0.00035616,10]
[402100796,1768518647238,-500.0,0.00035616,10]
[402100797,1768518647248,-505.4,0.00035616,10]
[402100799,1768518647259,-500.0,0.00035616,10]
[402100800,1768518647268,-500.0,0.00035616,10]
[402100801,1768518647278,-500.0,0.00035616,10]
[402100802,1768518647289,-500.0,0.00035616,10]
[402100803,1768518647300,-500.0,0.00035616,10]
[402100804,1768518647311,-500.0,0.00035616,10]
[402100805,1768518647320,-500.0,0.00035616,10]
[402100806,1768518647330,-500.0,0.00035616,10]
[402100807,1768518647340,-500.0,0.00035616,10]
[402100809,1768518647351,-500.0,0.00035616,10]
[402100810,1768518647361,-775.95,0.00035616,10]
[402100811,1768518647371,-500.0,0.00035616,10]
[402100812,1768518647380,-500.0,0.00035616,10]
[402100813,1768518647391,-500.0,0.00035616,10]
[402100815,1768518647401,-500.0,0.00035616,10]
[402100816,1768518647411,-1056.0,0.00035616,10]
[402100817,1768518647421,-500.0,0.00035616,10]
[402100818,1768518647431,-500.0,0.00035616,10]
[402100819,1768518647441,-501.09,0.00035616,10]
[402100820,1768518647451,-559.54880532,0.00035616,10]
[402100822,1768518647462,-500.0,0.00035616,10]
[402100823,1768518647472,-612.05,0.00035616,10]
[402100824,1768518647481,-500.0,0.00035616,10]
[402100825,1768518647491,-500.0,0.00035616,10]
[402100826,1768518647500,-910.49,0.00035616,10]
[402100828,1768518647510,-704.28,0.00035616,10]
[402100829,1768518647520,-500.0,0.00035616,10]
[402100830,1768518647530,-500.0,0.00035616,10]
[402100831,1768518647540,-500.0,0.00035616,10]
[402100832,1768518647550,-1639.77,0.00035616,10]
[402100834,1768518647560,-500.0,0.00035616,10]
[402100835,1768518647569,-500.0,0.00035616,10]
[402100836,1768518647580,-585.09,0.00035616,10]
[402100837,1768518647589,-500.0,0.00035616,10]
[402100838,1768518647599,-657.35,0.00035616,10]
[402100839,1768518647609,-1168.7,0.00035616,10]
[402100840,1768518647618,-500.0,0.00035616,10]
[402100842,1768518647628,-547.04767826,0.00035616,10]
[402100843,1768518647637,-500.0,0.00035616,10]
[402100844,1768518647647,-500.0,0.00035616,10]
[402100845,1768518647657,-611.14,0.00035616,10]
[402100846,1768518647666,-500.0,0.00035616,10]
[402100848,1768518647676,-500.0,0.00035616,10]
[402100849,1768518647686,-500.0,0.00035616,10]
[402100850,1768518647696,-502.72853171,0.00035616,10]
[402100851,1768518647710,-500.0,0.00035616,10]
[402100852,1768518647720,-866.83,0.00035616,10]
[402100854,1768518647729,-500.0,0.00035616,10]
[402100855,1768518647739,-500.0,0.00035616,10]
[402100856,1768518647750,-1114.58,0.00035616,10]
[402100857,1768518647759,-500.0,0.00035616,10]
[402100858,1768518647769,-500.0,0.00035616,10]
[402100860,1768518647779,-500.0,0.00035616,2]
[402100861,1768518647789,-500.0,0.00035616,10]
[402100862,1768518647798,-642.36,0.00035616,10]
[402100863,1768518647808,-500.0,0.00035616,10]
[402100864,1768518647818,-500.0,0.00035616,10]
[402100865,1768518647828,-538.55,0.00035616,10]
[402100866,1768518647839,-1178.1,0.00035616,10]
[402100867,1768518647848,-500.0,0.00035616,10]
[402100869,1768518647858,-500.0,0.00035616,10]
[402100870,1768518647868,-555.62,0.00035616,10]
[402100871,1768518647878,-219.78965372,0.00035616,10]
[402100872,1768518647887,-500.0,0.00035616,10]
[402100873,1768518647897,-684.11,0.00035616,10]
[402100874,1768518647907,-533.83,0.00035616,10]
[402100876,1768518647916,-500.0,0.00035616,10]
[402100877,1768518647929,-663.66,0.00035616,10]
[402100878,1768518647939,-500.0,0.00035616,10]
[402100879,1768518647949,-500.0,0.00035616,10]
[402100880,1768518647958,-1144.43,0.00035616,10]
[402100882,1768518647973,-500.0,0.00035616,10]
[402100883,1768518647983,-500.0,0.00035616,10]
[402100884,1768518647993,-1648.21,0.00035616,10]
[402100885,1768518648003,-500.0,0.00035616,10]
[402100886,1768518648014,-500.0,0.00035616,10]
[402100887,1768518648024,-383.87609685,0.00035616,10]
[402100889,1768518648035,-500.0,0.00035616,10]
[402100890,1768518648046,-500.0,0.00035616,10]
[402100891,1768518648056,-500.0,0.00035616,10]
[402100892,1768518648066,-500.0,0.00035616,10]
[402100893,1768518648080,-500.0,0.00035616,10]
[402100895,1768518648090,-500.0,0.00035616,10]
[402100896,1768518648100,-569.31,0.00035616,10]
[402100897,1768518648110,-500.0,0.00035616,10]
[402100898,1768518648120,-522.5985824,0.00035616,10]
[402100899,1768518648131,-586.35,0.00035616,10]
[402100900,1768518648140,-500.0,0.00035616,10]
[402100901,1768518648151,-500.0,0.00035616,10]
[402100902,1768518648161,-209.52601325,0.00035616,10]
[402100903,1768518648171,-500.0,0.00035616,10]
[402100904,1768518648182,-500.0,0.00035616,10]
[402100905,1768518648193,-592.72,0.00035616,10]
[402100907,1768518648203,-562.94,0.00035616,10]
[402100909,1768518648214,-500.0,0.00035616,10]
[402100911,1768518648224,-500.0,0.00035616,10]
[402100913,1768518648235,-500.0,0.00035616,10]
[402100914,1768518648245,-500.0,0.00035616,10]
[402100915,1768518648255,-606.85,0.00035616,10]
[402100916,1768518648265,-500.0,0.00035616,10]
[402100917,1768518648276,-500.0,0.00035616,10]
[402100919,1768518648286,-500.0,0.00035616,10]
[402100920,1768518648297,-500.0,0.00035616,10]
[402100921,1768518648308,-500.0,0.00035616,10]
[402100922,1768518648318,-500.0,0.00035616,10]
[402100923,1768518648328,-807.01,0.00035616,10]
[402100925,1768518648338,-500.0,0.00035616,10]
[402100926,1768518648348,-653.11,0.00035616,10]
[402100927,1768518648358,-500.0,0.00035616,10]
[402100928,1768518648368,-500.0,0.00035616,10]
[402100929,1768518648378,-500.0,0.00035616,10]
[402100930,1768518648388,-500.0,0.00035616,10]
[402100932,1768518648399,-500.0,0.00035616,10]
[402100933,1768518648409,-500.0,0.00035616,10]
[402100934,1768518648419,-500.0,0.00035616,10]
[402100935,1768518648429,-500.0,0.00035616,10]
[402100936,1768518648439,-540.64,0.00035616,10]
[402100938,1768518648453,-681.78,0.00035616,10]
[402100939,1768518648463,-635.51,0.00035616,10]
[402100940,1768518648473,-500.0,0.00035616,10]
[402100941,1768518648483,-750.99,0.00035616,10]
[402100942,1768518648493,-500.0,0.00035616,10]
[402100943,1768518648503,-500.0,0.00035616,10]
[402100945,1768518648513,-500.0,0.00035616,10]
[402100946,1768518648523,-708.23,0.00035616,10]
[402100947,1768518648534,-500.0,0.00035616,10]
[402100948,1768518648544,-500.0,0.00035616,10]
[402100949,1768518648554,-500.0,0.00035616,10]
[402100950,1768518648564,-500.0,0.00035616,10]
[402100952,1768518648574,-500.0,0.00035616,10]
[402100953,1768518648584,-500.0,0.00035616,10]
[402100954,1768518648595,-1002.86,0.00035616,10]
[402100955,1768518648605,-907.57,0.00035616,10]
[402100956,1768518648615,-770.76,0.00035616,10]
[402100958,1768518648628,-1436.73,0.00035616,10]
[402100959,1768518648639,-500.0,0.00035616,10]
[402100960,1768518648649,-471.2917172,0.00035616,10]
[402100961,1768518648659,-720.33,0.00035616,10]
[402100962,1768518648670,-415.29239669,0.00035616,10]
[402100963,1768518648680,-500.0,0.00035616,10]
[402100965,1768518648691,-419.42226088,0.00035616,10]
[402100970,1768518648989,-572.8,0.00035616,10]
[402100971,1768518649058,-500.0,0.00035616,10]
[402100973,1768518649075,-486.05163812,0.00035616,10]
[402100974,1768518649085,-500.0,0.00035616,10]
[402100975,1768518649095,-500.0,0.00035616,10]
[402100976,1768518649105,-309.19130484,0.00035616,10]
[402100977,1768518649114,-500.0,0.00035616,10]
[402100978,1768518649123,-500.0,0.00035616,10]
[402100980,1768518649134,-500.0,0.00035616,10]
[402100981,1768518649145,-150.99247659,0.00035616,10]
[402100982,1768518649155,-520.108656,0.00035616,10]
[402100983,1768518649165,-675.87,0.00035616,10]
[402100984,1768518649176,-500.0,0.00035616,10]
[402100985,1768518649185,-500.0,0.00035616,10]
[402100987,1768518649195,-500.0,0.00035616,10]
[402100988,1768518649205,-500.0,0.00035616,10]
[402100989,1768518649215,-533.97542719,0.00035616,10]
[402100990,1768518649224,-1295.34,0.00035616,10]
[402100991,1768518649234,-500.0,0.00035616,10]
[402100992,1768518649243,-500.0,0.00035616,10]
[402100993,1768518649252,-500.0,0.00035616,10]
[402100994,1768518649262,-500.0,0.00035616,10]
[402100995,1768518649272,-500.0,0.00035616,10]
[402100996,1768518649282,-500.0,0.00035616,10]
[402100997,1768518649293,-500.0,0.00035616,10]
[402100998,1768518649304,-500.0,0.00035616,10]
[402100999,1768518649315,-500.0,0.00035616,10]
[402101000,1768518649325,-1068.3,0.00035616,10]
[402101002,1768518649334,-500.0,0.00035616,10]
[402101003,1768518649343,-500.0,0.00035616,10]
[402101004,1768518649353,-500.0,0.00035616,10]
[402101005,1768518649363,-500.0,0.00035616,10]
[402101006,1768518649375,-500.0,0.00035616,10]
[402101007,1768518649385,-1521.26,0.00035616,10]
[402101009,1768518649394,-500.0,0.00035616,10]
[402101010,1768518649404,-869.14,0.00035616,10]
[402101011,1768518649414,-1271.4,0.00035616,10]
[402101012,1768518649423,-500.0,0.00035616,10]
[402101013,1768518649433,-500.0,0.00035616,10]
[402101014,1768518649442,-655.55,0.00035616,10]
[402101016,1768518649451,-500.0,0.00035616,10]
[402101017,1768518649461,-515.13838637,0.00035616,10]
[402101018,1768518649470,-702.54,0.00035616,10]
[402101019,1768518649480,-1665.48,0.00035616,10]
[402101020,1768518649490,-410.61247741,0.00035616,10]
[402101021,1768518649500,-500.0,0.00035616,10]
[402101023,1768518649509,-500.0,0.00035616,10]
[402101024,1768518649518,-664.9,0.00035616,10]
[402101025,1768518649527,-568.68224518,0.00035616,10]
[402101026,1768518649536,-500.0,0.00035616,10]
[402101027,1768518649546,-613.76,0.00035616,10]
[402101028,1768518649556,-500.0,0.00035616,10]
[402101030,1768518649566,-500.0,0.00035616,10]
[402101031,1768518649575,-500.0,0.00035616,10]
[402101032,1768518649584,-795.18,0.00035616,10]
[402101033,1768518649594,-500.0,0.00035616,10]
[402101034,1768518649603,-500.0,0.00035616,10]
[402101035,1768518649612,-514.52188066,0.00035616,10]
[402101036,1768518649622,-681.14,0.00035616,10]
[402101037,1768518649631,-500.0,0.00035616,10]
[402101039,1768518649640,-500.0,0.00035616,10]
[402101040,1768518649649,-500.0,0.00035616,10]
[402101041,1768518649658,-500.0,0.00035616,10]
[402101042,1768518649667,-500.0,0.00035616,10]
[402101043,1768518649677,-500.0,0.00035616,10]
[402101045,1768518649686,-556.66561714,0.00035616,10]
[402101046,1768518649695,-576.21,0.00035616,10]
[402101047,1768518649704,-500.0,0.00035616,10]
[402101048,1768518649713,-1081.09,0.00035616,10]
[402101049,1768518649722,-500.0,0.00035616,10]
[402101050,1768518649731,-500.0,0.00035616,10]
[402101051,1768518649740,-500.0,0.00035616,10]
[402101053,1768518649750,-500.0,0.00035616,10]
[402101054,1768518649758,-500.0,0.00035616,10]
[402101055,1768518649768,-500.0,0.00035616,10]
[402101056,1768518649777,-500.0,0.00035616,10]
[402101057,1768518649786,-500.0,0.00035616,10]
[402101058,1768518649796,-832.1,0.00035616,10]
[402101059,1768518649807,-500.0,0.00035616,10]
[402101060,1768518649816,-500.0,0.00035616,10]
[402101061,1768518649825,-500.0,0.00035616,10]
[402101062,1768518649835,-586.81,0.00035616,10]
[402101063,1768518649845,-500.0,0.00035616,10]
[402101064,1768518649854,-570.52954411,0.00035616,10]
[402101065,1768518649865,-500.0,0.00035616,10]
[402101066,1768518649876,-500.0,0.00035616,10]
[402101067,1768518649886,-500.0,0.00035616,10]
[402101069,1768518649895,-500.0,0.00035616,10]
[402101070,1768518649905,-500.0,0.00035616,10]
[402101071,1768518649914,-500.0,0.00035616,10]
[402101072,1768518649924,-558.30205555,0.00035616,10]
[402101073,1768518649934,-500.0,0.00035616,10]
[402101075,1768518649943,-500.0,0.00035616,10]
[402101076,1768518649952,-500.0,0.00035616,10]
[402101077,1768518649962,-500.0,0.00035616,10]
[402101078,1768518649976,-928.19,0.00035616,10]
[402101079,1768518649985,-500.0,0.00035616,10]
[402101081,1768518649994,-638.35,0.00035616,10]
[402101082,1768518650003,-500.0,0.00035616,10]
[402101083,1768518650014,-500.0,0.00035616,10]
[402101084,1768518650023,-500.0,0.00035616,10]
[402101085,1768518650032,-500.0,0.00035616,10]
[402101086,1768518650042,-500.0,0.00035616,10]
[402101088,1768518650052,-532.08190793,0.00035616,10]
[402101089,1768518650061,-530.13,0.00035616,10]
[402101090,1768518650072,-500.0,0.00035616,10]
[402101091,1768518650083,-853.07,0.00035616,10]
[402101092,1768518650092,-500.0,0.00035616,10]
[402101093,1768518650102,-500.0,0.00035616,10]
[402101094,1768518650112,-500.0,0.00035616,10]
[402101095,1768518650121,-500.0,0.00035616,10]
[402101096,1768518650130,-500.0,0.00035616,10]
[402101097,1768518650140,-588.06,0.00035616,10]
[402101098,1768518650149,-500.0,0.00035616,10]
[402101099,1768518650158,-500.0,0.00035616,10]
[402101101,1768518650167,-500.0,0.00035616,10]
[402101102,1768518650176,-682.11,0.00035616,10]
[402101103,1768518650186,-500.0,0.00035616,10]
[402101104,1768518650195,-964.75,0.00035616,10]
[402101105,1768518650205,-500.0,0.00035616,10]
[402101107,1768518650214,-500.0,0.00035616,10]
[402101108,1768518650224,-500.0,0.00035616,10]
[402101109,1768518650233,-500.0,0.00035616,10]
[402101110,1768518650242,-500.0,0.00035616,10]
[402101111,1768518650251,-575.94,0.00035616,10]
[402101112,1768518650261,-500.0,0.00035616,10]
[402101114,1768518650270,-500.0,0.00035616,10]
[402101115,1768518650279,-572.92,0.00035616,10]
[402101116,1768518650289,-629.25,0.00035616,10]
[402101117,1768518650298,-500.0,0.00035616,10]
[402101118,1768518650308,-500.0,0.00035616,10]
[402101120,1768518650317,-500.0,0.00035616,10]
[402101121,1768518650327,-500.0,0.00035616,10]
[402101122,1768518650336,-500.0,0.00035616,10]
[402101123,1768518650345,-500.0,0.00035616,10]
[402101124,1768518650354,-872.68,0.00035616,10]
[402101126,1768518650363,-500.0,0.00035616,10]
[402101127,1768518650373,-1250.58,0.00035616,10]
[402101128,1768518650382,-500.0,0.00035616,10]
[402101129,1768518650392,-500.0,0.00035616,10]
[402101130,1768518650402,-517.36496543,0.00035616,10]
[402101132,1768518650411,-695.06,0.00035616,10]
[402101133,1768518650420,-577.05,0.00035616,10]
[402101134,1768518650431,-500.0,0.00035616,120]
[402101135,1768518650440,-808.28,0.00035616,10]
[402101136,1768518650451,-612.76782254,0.00035616,10]
[402101138,1768518650460,-500.0,0.00035616,10]
[402101139,1768518650469,-500.0,0.00035616,10]
[402101140,1768518650478,-203.60988597,0.00035616,10]
[402101141,1768518650488,-761.18,0.00035616,10]
[402101142,1768518650497,-406.12399864,0.00035616,10]
[402101143,1768518650507,-600.15,0.00035616,10]
[402101144,1768518650516,-500.0,0.00035616,10]
[402101146,1768518650525,-500.0,0.00035616,10]
[402101147,1768518650535,-500.0,0.00035616,10]
[402101148,1768518650544,-500.0,0.00035616,10]
[402101149,1768518650554,-500.0,0.00035616,10]
[402101150,1768518650563,-607.28753863,0.00035616,10]
[402101152,1768518650574,-417.58877075,0.00035616,10]
[402101153,1768518650583,-1684.77,0.00035616,10]